bitfinex/quotes_BTCUSD_20250410
["timestamp","ask_amount","ask_price","bid_price","bid_amount"]
[1744293365751,0.598967,81091.0,81090.0,0.0208785]
[1744293365909,0.012334,81075.0,81074.0,0.0208785]
[1744293366324,0.012334,81076.0,81075.0,0.0208785]
[1744293366501,0.012333,81077.0,81075.0,0.0208785]
[1744293366702,0.493265,81093.0,81068.0,9.451e-05]
[1744293366703,0.34,81085.0,81084.0,0.0208785]
[1744293366903,0.352332,81085.0,81084.0,0.0208785]
[1744293367423,0.47288582,81085.0,81084.0,0.0208785]
[1744293367623,0.352333,81083.0,81082.0,0.0208785]
[1744293367881,0.34,81075.0,81068.0,9.451e-05]
[1744293368023,0.599038,81069.0,81068.0,5.1e-07]
[1744293368226,0.95015182,81069.0,81068.0,5.1e-07]
[1744293368429,0.586718,81064.0,81063.0,2.1e-07]
[1744293368627,0.586718,81064.0,81051.0,0.004]
[1744293368628,0.012336,81059.0,81051.0,0.004]
[1744293368882,1.98930282,81059.0,81058.0,0.12951005]
[1744293369020,2.38930282,81059.0,81058.0,0.0007619]
[1744293371139,2.13023382,81059.0,81058.0,0.0007619]
[1744293371340,2.00968,81059.0,81058.0,0.0216404]
[1744293371568,2.14256982,81059.0,81058.0,0.0216404]
[1744293371766,1.60968,81059.0,81058.0,0.0216404]
[1744293372146,1.26968,81059.0,81058.0,0.0339764]
[1744293372590,0.246704,81069.0,81058.0,0.0339764]
[1744293372754,0.2306,81075.0,81074.0,0.2675665]
[1744293372953,1.26996,81086.0,81080.0,0.0208785]
[1744293372954,0.012333,81081.0,81080.0,0.0208785]
[1744293373151,1.26996,81086.0,81084.0,0.2675335]
[1744293373355,0.012332,81085.0,81084.0,0.0208785]
[1744293373577,0.16494743,81087.0,81086.0,0.0208785]
[1744293373815,0.17727943,81087.0,81086.0,0.0208785]
[1744293373953,0.17727943,81087.0,81081.0,0.0208785]
[1744293373954,0.246663,81082.0,81081.0,0.0208785]
[1744293374314,0.259019,81075.0,81073.0,0.0208785]
[1744293374541,0.13288782,81074.0,81073.0,0.0208785]
[1744293374745,0.13288782,81074.0,81058.0,0.0007619]
[1744293374746,0.012334,81072.0,81071.0,0.0208785]
[1744293374938,0.599031,81071.0,81070.0,0.0208785]
[1744293375174,0.71958482,81071.0,81070.0,0.0208785]
[1744293375386,0.012335,81070.0,81069.0,0.0208785]
[1744293375635,0.13288882,81070.0,81069.0,0.0208785]
[1744293375882,0.76082065,81070.0,81069.0,0.0208785]
[1744293376122,0.70348882,81070.0,81069.0,0.0208785]
[1744293376628,0.582935,81070.0,81069.0,0.0208785]
[1744293376864,0.5706,81070.0,81069.0,0.2675815]
[1744293377101,1.52901,81078.0,81068.0,0.012335]
[1744293377102,1.27,81078.0,81077.0,0.0332115]
[1744293377818,0.489574,81089.0,81088.0,0.0208785]
[1744293378055,0.2306,81107.0,81100.0,0.0208785]
[1744293378297,0.0003372,81124.0,81106.0,0.2797975]
[1744293378298,0.012328,81112.0,81106.0,0.2797975]
[1744293378528,0.012328,81112.0,81111.0,0.0208785]
[1744293378529,0.2589,81112.0,81111.0,0.0208785]
[1744293378769,0.586555,81118.0,81117.0,0.0208785]
[1744293379030,0.1266434,81119.0,81117.0,0.0208785]
[1744293379270,0.38565176,81119.0,81118.0,0.0208785]
[1744293379509,0.12677076,81119.0,81118.0,0.2797595]
[1744293379706,0.12677076,81119.0,81118.0,0.0208785]
[1744293379907,0.13909776,81119.0,81118.0,0.0208785]
[1744293380174,0.01245436,81119.0,81118.0,0.0208785]
[1744293380417,0.012328,81113.0,81111.0,0.0208785]
[1744293380643,0.246645,81090.0,81084.0,0.258988]
[1744293380858,0.246641,81090.0,81086.0,0.258982]
[1744293381070,0.23056,81096.0,81090.0,0.012331]
[1744293381276,0.258961,81093.0,81092.0,0.0208785]
[1744293381453,0.258961,81093.0,81090.0,0.0208785]
[1744293381454,0.258967,81091.0,81090.0,0.0208785]
[1744293381913,0.489512,81096.0,81095.0,0.0208785]
[1744293382332,0.60967311,81096.0,81095.0,0.0208785]
[1744293382756,0.012332,81084.0,81079.0,0.246672]
[1744293382961,0.258989,81084.0,81083.0,0.0208785]
[1744293383161,0.258989,81084.0,81067.0,0.012335]
[1744293383162,0.012334,81074.0,81067.0,0.012335]
[1744293383334,0.012333,81077.0,81076.0,0.0208785]
[1744293383479,0.259013,81077.0,81076.0,0.0208785]
[1744293383680,0.259013,81077.0,81058.0,0.0003372]
[1744293383681,0.012336,81063.0,81058.0,0.0003372]
[1744293383876,0.012336,81062.0,81058.0,0.0003372]
[1744293384110,0.259069,81059.0,81058.0,0.0212157]
[1744293384315,0.259069,81059.0,81058.0,0.0003372]
[1744293384726,0.4464774,81059.0,81058.0,0.0003372]
[1744293384927,0.71962282,81059.0,81058.0,0.0007619]
[1744293386361,0.012334,81076.0,81068.0,0.2799185]
[1744293386565,0.012334,81074.0,81073.0,0.0208785]
[1744293386922,0.599022,81074.0,81073.0,0.0208785]
[1744293387126,0.599028,81072.0,81071.0,0.0208785]
[1744293387893,0.246733,81059.0,81058.0,0.0216404]
[1744293388230,0.259069,81059.0,81058.0,0.0216404]
[1744293388383,0.476805,81062.0,81058.0,0.0216404]
[1744293388587,0.23008,81062.0,81061.0,0.0208785]
[1744293388783,1.27004,81070.0,81069.0,0.0208785]
[1744293389037,1.27004,81070.0,81069.0,0.2675815]
[1744293389259,1.27004,81070.0,81069.0,0.2799165]
[1744293389545,0.23008,81080.0,81078.0,0.0208785]
[1744293389749,0.23008,81080.0,81079.0,0.2798835]
[1744293390289,0.23008,81080.0,81079.0,0.0208785]
[1744293390535,0.23008,81080.0,81079.0,0.0332115]
[1744293390938,0.242413,81080.0,81079.0,0.0208785]
[1744293391451,0.242413,81080.0,81061.0,0.0208785]
[1744293391452,0.246727,81062.0,81061.0,0.0208785]
[1744293391691,0.012335,81066.0,81060.0,0.259065]
[1744293391894,0.012335,81066.0,81063.0,0.0208785]
[1744293391895,0.246719,81064.0,81063.0,0.0208785]
[1744293392049,0.246725,81062.0,81059.0,0.0208785]
[1744293392249,0.012336,81063.0,81062.0,0.0208785]
[1744293392565,0.37961182,81063.0,81062.0,0.0208785]
[1744293392771,0.259058,81063.0,81062.0,0.0208785]
[1744293393532,0.259086,81054.0,81053.0,0.00012746]
[1744293393993,0.242416,81059.0,81058.0,0.0208785]
[1744293395206,0.242416,81059.0,81053.0,0.00012746]
[1744293395207,0.259086,81054.0,81053.0,0.02100596]
[1744293395412,0.71963982,81054.0,81053.0,0.00012746]
[1744293396390,0.599086,81054.0,81053.0,0.00012746]
[1744293396679,0.599086,81054.0,81053.0,0.02100596]
[1744293397187,0.999086,81054.0,81053.0,0.02100596]
[1744293398145,0.74,81054.0,81053.0,0.02100596]
[1744293398352,0.752337,81054.0,81053.0,0.02100596]
[1744293398551,0.4,81054.0,81053.0,0.02100596]
[1744293398755,0.412337,81054.0,81053.0,0.02100596]
[1744293399812,0.246736,81058.0,81053.0,0.02100596]
[1744293399813,0.599063,81061.0,81060.0,0.0208785]
[1744293399945,0.94973682,81061.0,81060.0,0.0208785]
[1744293400145,1.11961682,81061.0,81060.0,0.0208785]
[1744293400359,0.012335,81066.0,81064.0,0.0208785]
[1744293400360,0.599052,81065.0,81064.0,0.0208785]
[1744293400767,0.999052,81065.0,81064.0,0.0208785]
[1744293400965,0.999052,81065.0,81053.0,0.00012746]
[1744293400966,0.34,81062.0,81061.0,0.0208785]
[1744293401213,0.47288982,81062.0,81061.0,0.0208785]
[1744293401587,0.012336,81057.0,81053.0,0.00012746]
[1744293401798,0.259086,81054.0,81053.0,0.02100596]
[1744293402096,0.489206,81054.0,81053.0,0.02100596]
[1744293402345,0.889206,81054.0,81053.0,0.02100596]
[1744293403302,0.889206,81054.0,81053.0,0.00012746]
[1744293403504,0.889206,81054.0,81053.0,0.02100596]
[1744293403505,1.00975982,81054.0,81053.0,0.02100596]
[1744293403726,1.00975982,81054.0,81053.0,0.00012746]
[1744293403903,1.34975982,81054.0,81053.0,0.00012746]
[1744293404113,1.3858949,81054.0,81053.0,0.00012746]
[1744293404789,1.34975982,81054.0,81053.0,0.00012746]
[1744293406007,1.216869,81054.0,81053.0,0.02100596]
[1744293406228,1.229206,81054.0,81053.0,0.02100596]
[1744293407041,1.229206,81054.0,81053.0,0.00012746]
[1744293407290,1.34975982,81054.0,81053.0,0.02100596]
[1744293408291,1.47019241,81054.0,81053.0,0.00012746]
[1744293408515,1.34975982,81054.0,81053.0,0.00012746]
[1744293408842,0.889206,81054.0,81053.0,0.02100596]
[1744293409250,0.63012,81054.0,81053.0,0.02100596]
[1744293409474,0.876869,81054.0,81053.0,0.02100596]
[1744293409684,0.63012,81054.0,81053.0,0.28009496]
[1744293410009,0.63012,81054.0,81053.0,0.26775796]
[1744293410210,0.63012,81054.0,81053.0,0.02100596]
[1744293410648,0.23012,81054.0,81053.0,0.02100596]
[1744293410853,0.489206,81054.0,81053.0,0.02100596]
[1744293411000,0.889206,81054.0,81053.0,0.02100596]
[1744293411199,1.34975982,81054.0,81053.0,0.00012746]
[1744293411640,1.34975982,81054.0,81053.0,0.02100596]
[1744293411805,1.34975982,81054.0,81053.0,0.00012746]
[1744293412202,1.28506444,81054.0,81053.0,0.00012746]
[1744293413850,0.88506444,81054.0,81053.0,0.00012746]
[1744293414288,1.28506444,81054.0,81053.0,0.00012746]
[1744293418246,1.28506444,81054.0,81053.0,4.6e-07]
[1744293418680,0.599092,81052.0,81051.0,4.6e-07]
[1744293418818,0.71964582,81052.0,81051.0,4.6e-07]
[1744293419020,0.74234856,81052.0,81051.0,4.6e-07]
[1744293419446,1.14234856,81052.0,81051.0,4.6e-07]
[1744293420490,1.11964582,81052.0,81051.0,4.6e-07]
[1744293422266,0.77964582,81052.0,81051.0,0.02087896]
[1744293422508,1.11964582,81052.0,81051.0,4.6e-07]
[1744293423555,1.20622399,81052.0,81051.0,4.6e-07]
[1744293423749,1.11964582,81052.0,81051.0,4.6e-07]
[1744293424902,1.34924582,81052.0,81051.0,4.6e-07]
[1744293425835,1.36378667,81052.0,81051.0,4.6e-07]
[1744293426034,0.59914,81037.0,81035.0,0.0001686]
[1744293426266,0.35234,81036.0,81035.0,0.0001686]
[1744293426517,0.88729382,81036.0,81035.0,0.0001686]
[1744293426760,1.28729382,81036.0,81035.0,0.0001686]
[1744293427195,1.32217053,81036.0,81035.0,0.0001686]
[1744293428136,1.33151053,81036.0,81035.0,0.0001686]
[1744293428861,1.55181053,81036.0,81035.0,0.0210471]
[1744293429066,0.26451671,81036.0,81035.0,0.0333871]
[1744293429400,0.25238122,81036.0,81035.0,0.0333871]
[1744293430098,0.02274122,81036.0,81035.0,0.0333871]
[1744293430445,0.02274122,81044.0,81043.0,0.0208785]
[1744293430615,0.02274122,81044.0,81043.0,0.2799995]
[1744293431204,0.02274122,81044.0,81043.0,0.0208785]
[1744293431403,0.246776,81045.0,81043.0,0.0208785]
[1744293431609,0.246768,81048.0,81047.0,0.0208785]
[1744293431805,0.26950922,81048.0,81047.0,0.0208785]
[1744293432018,0.28184722,81048.0,81047.0,0.0208785]
[1744293432470,0.259143,81036.0,81026.0,0.2469994]
[1744293432656,0.24097394,81036.0,81035.0,0.2801921]
[1744293432975,0.24097394,81036.0,81035.0,0.0333871]
[1744293432976,0.26371516,81036.0,81035.0,0.0333871]
[1744293433190,0.03411516,81036.0,81035.0,0.16848177]
[1744293433413,0.54107775,81053.0,81052.0,0.3270705]
[1744293433414,7.5e-07,81053.0,81052.0,0.3270705]
[1744293433615,7.5e-07,81053.0,81052.0,0.46216517]
[1744293433764,7.5e-07,81053.0,81052.0,0.44762432]
[1744293434366,7.5e-07,81053.0,81052.0,0.306192]
[1744293434575,7.5e-07,81053.0,81052.0,0.0471]
[1744293434772,7.5e-07,81053.0,81052.0,0.3270705]
[1744293435140,0.012338,81049.0,81044.0,0.246779]
[1744293435336,0.012338,81050.0,81049.0,0.0208785]
[1744293435592,7.5e-07,81053.0,81052.0,0.2676335]
[1744293435750,8.899e-05,81054.0,81052.0,0.2676335]
[1744293435951,8.899e-05,81054.0,81053.0,0.2799675]
[1744293436255,0.08493783,81053.0,81052.0,0.259092]
[1744293436998,0.08493783,81053.0,81052.0,0.37964582]
[1744293437225,0.03813783,81053.0,81052.0,0.259092]
[1744293437422,0.03813783,81053.0,81048.0,0.14108615]
[1744293437654,0.03813783,81053.0,81051.0,0.246756]
[1744293438077,0.03813783,81053.0,81052.0,0.012337]
[1744293439728,0.03813783,81053.0,81052.0,0.01480439]
[1744293439957,0.03813783,81053.0,81052.0,0.012337]
[1744293441838,0.012337,81052.0,81041.0,0.14108715]
[1744293442072,0.246759,81051.0,81048.0,0.246766]
[1744293442313,0.012337,81052.0,81048.0,0.246766]
[1744293442557,0.246785,81042.0,81041.0,0.12874815]
[1744293442784,0.246776,81046.0,81041.0,0.37553415]
[1744293443246,0.246776,81046.0,81041.0,0.12874815]
[1744293443247,0.246785,81042.0,81041.0,0.12874815]
[1744293443479,0.37967782,81042.0,81041.0,0.12874815]
[1744293444386,0.259143,81036.0,81035.0,0.0001686]
[1744293444823,0.012339,81043.0,81036.0,0.01234]
[1744293444826,0.4144,81066.0,81052.0,0.259092]
[1744293445021,0.012335,81068.0,81052.0,0.259092]
[1744293445240,0.246736,81059.0,81052.0,0.246755]
[1744293445458,0.246734,81059.0,81052.0,0.259092]
[1744293445691,0.45,81106.0,81052.0,0.259092]
[1744293445915,0.012333,81082.0,81052.0,0.37964582]
[1744293446150,0.22888,81084.0,81083.0,0.258993]
[1744293446375,0.012334,81074.0,81069.0,0.246702]
[1744293446602,0.246691,81073.0,81069.0,0.246702]
[1744293446834,0.24163672,81084.0,81078.0,0.259008]
[1744293447055,0.246704,81069.0,81065.0,0.246713]
[1744293447288,0.246735,81059.0,81055.0,0.246743]
[1744293447521,0.246752,81053.0,81047.0,0.012338]
[1744293447744,0.22888,81060.0,81047.0,0.012338]
[1744293447745,0.22888,81060.0,81059.0,0.012336]
[1744293447969,0.012334,81071.0,81060.0,0.012336]
[1744293448198,0.259063,81061.0,81056.0,0.24674]
[1744293448424,0.25906,81062.0,81058.0,0.246736]
[1744293448699,0.34943382,81070.0,81067.0,0.012335]
[1744293448906,0.22888,81070.0,81069.0,0.012335]
[1744293449654,0.22888,81070.0,81068.0,0.246705]
[1744293449861,0.22888,81070.0,81069.0,0.246703]
[1744293450067,0.22888,81070.0,81069.0,0.012335]
[1744293450287,0.22888,81070.0,81067.0,0.246705]
[1744293450461,0.22888,81070.0,81069.0,0.012335]
[1744293451352,0.22888,81070.0,81067.0,0.25904]
[1744293451552,0.25903,81072.0,81067.0,0.25904]
[1744293451743,0.012334,81073.0,81068.0,0.012335]
[1744293451744,0.246692,81073.0,81068.0,0.012335]
[1744293451948,0.012334,81072.0,81067.0,0.246705]
[1744293452148,0.246676,81078.0,81071.0,0.012334]
[1744293452382,0.01275772,81079.0,81071.0,0.012334]
[1744293452383,0.00042472,81079.0,81073.0,0.012334]
[1744293452792,0.00042472,81079.0,81078.0,0.259009]
[1744293452998,0.00042472,81079.0,81077.0,0.246679]
[1744293453193,0.00042472,81079.0,81078.0,0.259009]
[1744293453623,0.00042472,81079.0,81078.0,0.42886282]
[1744293453838,3.2e-07,81086.0,81085.0,0.02687285]
[1744293454032,0.00012768,81086.0,81085.0,0.14989242]
[1744293454432,0.00012768,81086.0,81085.0,0.14742667]
[1744293455211,0.00012768,81086.0,81085.0,0.012332]
[1744293455853,0.00012768,81086.0,81082.0,0.012333]
[1744293456076,0.00012768,81086.0,81085.0,0.012332]
[1744293456673,0.00012768,81086.0,81085.0,0.01479814]
[1744293457015,0.00012768,81086.0,81085.0,0.012332]
[1744293457190,0.00012768,81086.0,81085.0,0.14742667]
[1744293457394,6.8e-07,81086.0,81085.0,0.14742667]
[1744293457600,6.8e-07,81086.0,81085.0,0.1498925]
[1744293457805,6.8e-07,81086.0,81085.0,0.01479776]
[1744293458011,6.8e-07,81086.0,81085.0,0.012332]
[1744293458211,6.8e-07,81086.0,81085.0,0.0147981]
[1744293458414,6.8e-07,81086.0,81085.0,0.012332]
[1744293460117,6.8e-07,81086.0,81082.0,0.012333]
[1744293460332,0.259035,81070.0,81054.0,0.0494]
[1744293460534,0.60838882,81070.0,81054.0,0.012337]
[1744293460735,0.63104556,81070.0,81052.0,0.259089]
[1744293460935,0.63104556,81070.0,81053.0,0.21797096]
[1744293461167,0.97104556,81070.0,81053.0,0.20563396]
[1744293461372,0.97104556,81070.0,81053.0,0.45238396]
[1744293461702,0.98324492,81070.0,81053.0,0.45238396]
[1744293461890,0.99457085,81070.0,81054.0,0.246748]
[1744293462082,0.99457085,81070.0,81053.0,0.45238396]
[1744293462438,0.99457085,81070.0,81054.0,0.246747]
[1744293462649,0.99457085,81070.0,81053.0,0.45238396]
[1744293462992,0.99457085,81070.0,81053.0,0.20563396]
[1744293463393,0.99457085,81070.0,81057.0,0.246738]
[1744293463394,0.246725,81062.0,81057.0,0.246738]
[1744293463610,0.246733,81059.0,81051.0,0.012337]
[1744293463854,0.03398267,81070.0,81069.0,0.259038]
[1744293464073,0.2288,81089.0,81069.0,0.259038]
[1744293464074,0.246665,81082.0,81076.0,0.24668]
[1744293464288,0.352333,81083.0,81072.0,0.012334]
[1744293464608,0.246685,81075.0,81073.0,0.00246676]
[1744293464826,0.259024,81074.0,81069.0,0.012335]
[1744293465052,0.246696,81072.0,81068.0,0.259039]
[1744293465289,0.246696,81072.0,81067.0,0.246707]
[1744293465506,0.259026,81073.0,81067.0,0.246707]
[1744293465507,0.012332,81085.0,81071.0,0.012334]
[1744293465728,0.2288,81082.0,81073.0,0.012334]
[1744293465942,0.02266292,81079.0,81078.0,0.012333]
[1744293466380,0.02266292,81081.0,81080.0,0.012333]
[1744293466813,0.2288,81082.0,81080.0,0.259]
[1744293467023,0.2288,81082.0,81081.0,0.012333]
[1744293467236,0.258979,81088.0,81084.0,0.246656]
[1744293467499,0.01133371,81087.0,81084.0,0.258988]
[1744293467714,0.01133371,81087.0,81085.0,0.258984]
[1744293468067,0.02266732,81086.0,81085.0,0.258984]
[1744293468476,0.0003368,81091.0,81090.0,0.25897]
[1744293468678,0.0003368,81091.0,81084.0,0.012332]
[1744293468679,0.246743,81056.0,81036.0,0.01234]
[1744293468881,0.012335,81068.0,81052.0,0.012337]
[1744293469095,0.012336,81057.0,81053.0,0.0024673]
[1744293469289,0.246747,81055.0,81053.0,0.0024673]
[1744293469548,0.012336,81057.0,81047.0,0.246768]
[1744293469549,0.012337,81054.0,81047.0,0.246768]
[1744293469750,0.012336,81057.0,81050.0,0.12874815]
[1744293469751,0.246756,81052.0,81050.0,0.12874815]
[1744293470031,0.012337,81051.0,81050.0,0.12874815]
[1744293470446,0.15557256,81051.0,81050.0,0.12874815]
[1744293470857,0.49557256,81051.0,81050.0,0.12874815]
[1744293471075,0.49557256,81051.0,81050.0,1.5e-07]
[1744293471558,0.51932287,81051.0,81050.0,1.5e-07]
[1744293472529,1.34826372,81051.0,81045.0,8.7e-07]
[1744293472723,1.34826372,81051.0,81035.0,0.0001686]
[1744293472724,0.259156,81032.0,81031.0,7.8e-07]
[1744293472923,1.38499156,81032.0,81031.0,4.6e-07]
[1744293473184,0.3882,81026.0,81025.0,1.6e-07]
[1744293473392,0.9551106,81026.0,81025.0,8.915e-05]
[1744293473605,0.9069106,81026.0,81025.0,8.915e-05]
[1744293473766,0.8945696,81026.0,81025.0,8.915e-05]
[1744293473940,0.5069106,81026.0,81025.0,8.915e-05]
[1744293474127,0.4945696,81026.0,81025.0,8.915e-05]
[1744293474336,0.87188786,81026.0,81025.0,8.915e-05]
[1744293474551,0.75133404,81026.0,81025.0,8.915e-05]
[1744293474748,0.01133404,81026.0,81025.0,0.01243015]
[1744293475385,0.01133404,81026.0,81025.0,0.01489839]
[1744293475616,0.01133404,81026.0,81025.0,0.06029799]
[1744293475813,0.012336,81059.0,81025.0,0.06029799]
[1744293475814,0.01133404,81052.0,81048.0,0.246767]
[1744293476014,0.01133404,81052.0,81050.0,0.259099]
[1744293476245,0.01133404,81052.0,81051.0,0.012337]
[1744293477112,0.246729,81061.0,81053.0,0.012337]
[1744293477307,0.246729,81061.0,81052.0,0.246755]
[1744293477308,0.259065,81061.0,81052.0,0.246755]
[1744293477508,0.012337,81053.0,81042.0,0.259122]
[1744293477826,0.69467783,81050.0,81044.0,8.899e-05]
[1744293478153,0.012338,81045.0,81044.0,8.899e-05]
[1744293478672,0.82156441,81045.0,81044.0,8.899e-05]
[1744293478826,0.70113182,81045.0,81044.0,8.899e-05]
[1744293479249,0.72373912,81045.0,81044.0,8.899e-05]
[1744293479692,0.73503872,81045.0,81044.0,8.899e-05]
[1744293479898,0.72270072,81045.0,81044.0,8.899e-05]
[1744293480401,0.71243142,81045.0,81044.0,8.899e-05]
[1744293481106,0.70009342,81045.0,81044.0,8.899e-05]
[1744293482287,0.71243142,81045.0,81044.0,8.899e-05]
[1744293482487,0.70113182,81045.0,81044.0,8.899e-05]
[1744293482690,1.10113182,81045.0,81044.0,8.899e-05]
[1744293483096,1.51553182,81045.0,81044.0,8.899e-05]
[1744293483301,1.63596441,81045.0,81044.0,8.899e-05]
[1744293483697,1.51553182,81045.0,81044.0,8.899e-05]
[1744293484507,1.52682283,81045.0,81044.0,8.899e-05]
[1744293485596,1.52682283,81045.0,81025.0,1.6e-07]
[1744293485597,0.599175,81026.0,81025.0,1.6e-07]
[1744293485796,1.13412882,81026.0,81025.0,1.6e-07]
[1744293485973,1.14541983,81026.0,81025.0,1.6e-07]
[1744293486175,1.26585242,81026.0,81025.0,1.6e-07]
[1744293486377,1.68957759,81026.0,81025.0,1.6e-07]
[1744293486597,1.68957759,81026.0,81019.0,0.0001684]
[1744293486598,0.61373485,81020.0,81019.0,0.0001684]
[1744293486812,0.96256867,81020.0,81019.0,0.0001684]
[1744293487386,1.37385968,81020.0,81019.0,0.0001684]
[1744293488000,1.37394861,81020.0,81019.0,0.0001684]
[1744293489656,1.4943812,81020.0,81019.0,0.0001684]
[1744293490067,1.37394861,81020.0,81019.0,0.0001684]
[1744293490799,1.37394861,81020.0,80992.0,0.0001683]
[1744293490800,0.25928,80993.0,80992.0,0.0001683]
[1744293491005,0.259278,80994.0,80992.0,0.0001683]
[1744293491205,0.246926,80996.0,80992.0,0.0001683]
[1744293491430,0.25928,80993.0,80992.0,0.0001683]
[1744293491650,0.12055382,80993.0,80992.0,0.0001683]
[1744293491857,0.246929,80995.0,80992.0,0.0001683]
[1744293492058,0.012346,80993.0,80992.0,0.00029576]
[1744293492628,0.246933,80994.0,80992.0,0.00029576]
[1744293492844,0.246927,80996.0,80992.0,0.00029576]
[1744293493055,0.34,81009.0,80997.0,0.012346]
[1744293493236,0.586892,81007.0,80999.0,0.012345]
[1744293493473,0.246905,81003.0,80999.0,0.246915]
[1744293493681,0.2469,81005.0,81000.0,0.246912]
[1744293494086,0.259245,81006.0,81000.0,0.246912]
[1744293494087,0.4,81004.0,81002.0,0.246904]
[1744293494221,0.4,81004.0,81001.0,0.246908]
[1744293494428,0.646903,81004.0,80999.0,0.25926]
[1744293494627,0.246906,81003.0,80998.0,0.259264]
[1744293494835,0.4,81004.0,80999.0,0.012345]
[1744293495015,0.4,81004.0,81001.0,0.012345]
[1744293495220,0.4,81004.0,80998.0,0.012345]
[1744293495438,0.34,81010.0,81004.0,0.012345]
[1744293495639,0.012344,81005.0,80999.0,0.246916]
[1744293495919,0.4,81004.0,80997.0,0.246921]
[1744293496119,0.4,81004.0,80999.0,0.012345]
[1744293496313,0.646902,81004.0,81000.0,0.246913]
[1744293496574,0.01128724,81003.0,81002.0,0.246904]
[1744293496779,0.01128724,81003.0,81001.0,0.246908]
[1744293496917,0.01128724,81003.0,81001.0,0.24691]
[1744293497322,0.01128724,81003.0,81000.0,0.246904]
[1744293497605,0.01128724,81003.0,81001.0,0.246908]
[1744293497774,0.01128724,81003.0,81002.0,0.246907]
[1744293498123,0.01128724,81003.0,81001.0,0.246908]
[1744293498321,0.01128724,81003.0,80999.0,0.246913]
[1744293498479,0.24691,81001.0,80995.0,0.246926]
[1744293498681,0.24691,81001.0,80996.0,0.259269]
[1744293498885,0.01128724,81003.0,81002.0,0.246907]
[1744293499082,0.01128724,81003.0,80998.0,0.259261]
[1744293499316,0.246912,81001.0,80997.0,0.246921]
[1744293499486,0.01128724,81000.0,80997.0,0.012346]
[1744293499684,0.246934,80993.0,80992.0,0.00029576]
[1744293499885,0.012346,80996.0,80992.0,0.00029576]
[1744293500124,0.246922,80997.0,80992.0,0.00029576]
[1744293500328,0.28087032,80996.0,80992.0,0.24723076]
[1744293500526,0.246929,80995.0,80992.0,0.24723076]
[1744293500694,0.02265808,80994.0,80992.0,0.24723076]
[1744293500905,0.02265808,80994.0,80992.0,0.00029576]
[1744293501130,0.02265808,80994.0,80993.0,0.246934]
[1744293501402,0.28087732,80994.0,80992.0,0.00029576]
[1744293501603,0.25821924,80994.0,80992.0,0.00029576]
[1744293501818,0.01128724,80994.0,80992.0,0.00029576]
[1744293502241,0.02265808,80993.0,80992.0,0.00029576]
[1744293502454,0.03394532,80993.0,80992.0,0.24723276]
[1744293502668,0.03394532,80993.0,80992.0,0.25957876]
[1744293503119,0.01128724,80993.0,80992.0,0.25957876]
[1744293503540,0.01128724,81001.0,80998.0,0.246919]
[1744293503748,0.01128724,81001.0,81000.0,0.246913]
[1744293503991,0.01128724,81001.0,80998.0,0.259264]
[1744293504254,0.0226604,81000.0,80995.0,0.246928]
[1744293504503,0.0226604,81000.0,80997.0,0.246922]
[1744293504752,0.0226604,80999.0,80996.0,0.012346]
[1744293505391,0.01128724,80999.0,80998.0,0.246919]
[1744293505641,0.01128724,80999.0,80997.0,0.246922]
[1744293505854,0.01128724,80999.0,80998.0,0.246919]
[1744293505855,0.0339462,80999.0,80998.0,0.246919]
[1744293506068,0.01128724,80999.0,80998.0,0.246919]
[1744293506526,0.03394835,80999.0,80998.0,0.246919]
[1744293506984,0.246921,80998.0,80989.0,0.012347]
[1744293507211,0.03394835,80999.0,80998.0,0.246919]
[1744293507448,0.01128724,80999.0,80998.0,0.259264]
[1744293507931,0.012346,80996.0,80992.0,0.00029576]
[1744293508166,0.246928,80995.0,80992.0,0.00029576]
[1744293508407,0.25928,80993.0,80992.0,0.00029576]
[1744293508962,0.39112106,80993.0,80992.0,0.00029576]
[1744293509172,0.41381715,80993.0,80992.0,0.00029576]
[1744293509979,0.15453715,80993.0,80992.0,0.00029576]
[1744293510181,0.03398333,80993.0,80992.0,0.25957876]
[1744293510379,0.40147115,80993.0,80992.0,0.00029576]
[1744293510606,0.41381715,80993.0,80992.0,0.00029576]
[1744293511372,0.81381715,80993.0,80992.0,0.00029576]
[1744293512859,1.27424974,80993.0,80992.0,0.00029576]
[1744293513062,0.247008,80969.0,80964.0,0.0001684]
[1744293513320,0.01128724,80969.0,80968.0,0.0005936]
[1744293513727,0.03398333,80969.0,80968.0,0.0129436]
[1744293515257,0.03398333,80969.0,80968.0,0.0005936]
[1744293515603,0.58616208,80969.0,80968.0,6e-07]
[1744293515817,0.59938,80962.0,80949.0,0.02]
[1744293516014,0.599419,80950.0,80949.0,0.02012751]
[1744293516217,1.36213282,80950.0,80949.0,0.02012751]
[1744293516532,1.36213282,80950.0,80935.0,0.0001684]
[1744293516533,0.259463,80936.0,80935.0,0.0001684]
[1744293516869,2.01411291,80936.0,80935.0,0.00029599]
[1744293517067,2.0233371,80936.0,80935.0,0.00029599]
[1744293517419,2.03462434,80936.0,80935.0,0.00029599]
[1744293517819,1.69462434,80936.0,80935.0,0.00029599]
[1744293518497,1.68540015,80936.0,80935.0,0.00029599]
[1744293519455,2.08540015,80936.0,80935.0,0.00029599]
[1744293520329,0.259477,80932.0,80931.0,9.9e-07]
[1744293520536,0.259534,80914.0,80913.0,8e-05]
[1744293520796,1.05627115,80914.0,80913.0,5.2e-07]
[1744293521093,1.22380374,80914.0,80913.0,5.2e-07]
[1744293521451,1.62380374,80914.0,80913.0,5.2e-07]
[1744293521692,1.51263373,80914.0,80913.0,5.2e-07]
[1744293521935,1.51575455,80914.0,80913.0,5.2e-07]
[1744293523189,1.46865455,80914.0,80913.0,5.2e-07]
[1744293525209,0.259572,80902.0,80901.0,0.004]
[1744293525412,1.65232582,80902.0,80901.0,0.00412625]
[1744293525824,2.07502191,80902.0,80901.0,0.00412625]
[1744293526226,2.54936276,80902.0,80901.0,0.00412625]
[1744293526659,0.259617,80888.0,80887.0,0.0001684]
[1744293526885,0.63074691,80888.0,80887.0,0.0001684]
[1744293527353,1.03074691,80888.0,80887.0,0.0001684]
[1744293527669,0.77112991,80888.0,80887.0,0.0001684]
[1744293527870,0.79477915,80888.0,80887.0,0.0001684]
[1744293528093,0.56689915,80888.0,80887.0,0.0001684]
[1744293528372,0.55453715,80888.0,80887.0,0.0001684]
[1744293528563,0.15453715,80888.0,80887.0,0.0001684]
[1744293528766,0.41415415,80888.0,80887.0,0.0001684]
[1744293529213,0.81415415,80888.0,80887.0,0.0001684]
[1744293531043,0.81515415,80888.0,80887.0,0.0001684]
[1744293531908,0.81715415,80888.0,80887.0,0.0001684]